[Event "Aktobe Open 2022"]
[Site "Aktobe"]
[Date "2022.06.15"]
[Round "2.1"]
[White "Kairbekova, Amina"]
[Black "Ponkratov, Pavel"]
[Result "0-1"]
[ECO "B08"]
[WhiteElo "2189"]
[BlackElo "2624"]
[Annotator "TA"]
[PlyCount "104"]
[EventDate "2022.06.14"]
[EventType "swiss"]
[EventCountry "KAZ"]
[SourceTitle "playchess.com"]
[Source "ChessBase"]
[SourceQuality "1"]
[TimeControl "5400+30"]

{[%evp 16,104,24,25,43,45,44,9,50,30,66,67,67,64,96,102,93,42,40,39,32,33,73,85,94,71,64,58,50,19,19,18,26,20,31,-4,-4,-5,-5,-5,-5,-5,-2,-2,0,0,0,0,0,0,0,0,-6,-14,0,0,0,-27,0,-50,-55,-40,-34,-102,-49,-93,-53,-128,-89,-95,-50,-89,-36,-52,0,0,0,-114,-121,-247,-218,-1070,-2112,-1459,-1206,-1389,-527,-4132,-2481,-2010,-914]} 1. e4 {[%emt 0:00:04]} Nc6 {[%emt 0:00:10]} 2. Nf3 {[%emt 0:01:45]} d6 {[%emt 0:00:06]} 3. d4 {[%emt 0:00:15]} Nf6 {[%emt 0:00:05]} 4. Nc3 {[%emt 0:00:32]} g6 {[%emt 0:00:06]} 5. d5 {[%emt 0:00:25]} Nb8 {[%emt 0:00:22][%cal Bc6b8,Bb8d7,Bd7c5][%mdl 32]} 6. h3 {[%emt 0:00:11]} Bg7 {[%emt 0:00:04]} 7. Bc4 {[%emt 0:03:42]} O-O {[%emt 0:00:19]} 8. O-O {[%emt 0:00:08]} c6 {[%emt 0:00:04]} 9. a4 {[%emt 0:02:57]} Nbd7 $5 {[%emt 0:01:07][%mdl 4] A promising side line. B08: Pirc Defence: Classical System.} 10. Re1 {[%emt 0:03:27]} Qc7 {[%emt 0:03:17]} 11. Bf1 {[%emt 0:03:33]} a5 {[%emt 0:02:46] The position is equal.} 12. Bg5 {[%emt 0:07:07] [#]} h6 $146 {[%emt 0:07:31]} ({Predecessor:} 12... Nc5 13. Qd2 e5 14. dxe6 Nxe6 15. Bh6 Rd8 16. Bxg7 Kxg7 17. Rad1 Qb6 18. b3 Qb4 {½-½ (35) Potkin,V (2599)-Sharafiev,A (2415) Sochi 2015}) 13. Be3 {[%emt 0:02:07]} Nc5 {[%emt 0:01:13]} 14. Bd4 {[%emt 0:08:59]} Rd8 {[%emt 0:01:08]} 15. Qd2 {[%emt 0:03:21]} e5 {[%emt 0:06:47]} 16. dxe6 {[%emt 0:04:07]} (16. Bxc5 $16 dxc5 17. Rad1) 16... Nxe6 $14 {[%emt 0:00:09]} 17. Bxf6 {[%emt 0:01:14]} Bxf6 {[%emt 0:00:05]} 18. Qxh6 {[%emt 0:00:19]} Qe7 {[%emt 0:00:04]} 19. Bc4 {[%emt 0:14:26]} Bg7 {[%emt 0:03:01]} 20. Qe3 {[%emt 0:00:37]} Nc5 {[%emt 0:13:09]} 21. Qf4 {[%emt 0:04:19]} Qf6 {[%emt 0:02:47]} 22. Qxf6 {[%emt 0:01:38]} Bxf6 {[%emt 0:00:10]} 23. e5 {[%emt 0:00:32]} dxe5 {[%emt 0:01:54]} 24. Nxe5 {[%emt 0:00:29]} Be6 {[%emt 0:01:05]} 25. Ne4 {[%emt 0:10:40]} Nxe4 {[%emt 0:00:36]} 26. Bxe6 {[%emt 0:03:46]} Bxe5 {[%emt 0:03:04]} 27. Rxe4 {[%emt 0:00:18]} Bxb2 {[%emt 0:00:05]} 28. Rb1 {[%emt 0:00:24]} Bf6 {[%emt 0:02:24]} 29. Bc4 {[%emt 0:05:58]} Rd7 {[%emt 0:00:23]} 30. h4 {[%emt 0:04:53]} Kg7 {[%emt 0:00:13]} 31. g3 {[%emt 0:00:43]} Rad8 {[%emt 0:00:40]} 32. Bd3 {[%emt 0:00:30]} Rc7 {[%emt 0:00:26]} 33. Rc4 {[%emt 0:00:30]} Rd5 {[%emt 0:00:12]} 34. Kg2 {[%emt 0:04:05]} Rcd7 {[%emt 0:00:06]} 35. Re4 {[%emt 0:02:11]} Be7 {[%emt 0:00:39]} 36. Rh1 {[%emt 0:03:04]} Bf6 {[%emt 0:06:42]} 37. Re8 {[%emt 0:00:40]} (37. Rb1 $11) 37... b5 $1 $15 {[%emt 0:02:15]} 38. axb5 {[%emt 0:01:31]} cxb5 {[%emt 0:00:09]} 39. Rb8 {[%emt 0:00:29]} (39. Ra8 $15) 39... b4 {[%emt 0:00:27]} (39... Ra7 $17 {Hoping for ...a4.} 40. h5 (40. Rxb5 Rxb5 41. Bxb5 a4 $17) (40. Bxb5 a4 $17) 40... gxh5) 40. g4 {[%emt 0:01:07]} Be5 {[%emt 0:02:49]} 41. Rb6 {[%emt 0:01:02]} (41. Ra8 $1 $15) 41... Bd4 $36 {[%emt 0:03:54][%mdl 2048] Keeping White busy.} 42. Ra6 {[%emt 0:00:13]} R7d6 {[%emt 0:04:19]} 43. Ra8 {[%emt 0:00:20]} Rf6 {[%emt 0:03:09]} ({Better is} 43... Bb6 $17 {[%cal Ob4b3] Threatens to win with ...b3!} 44. Rb1 Rc5) 44. f3 {[%emt 0:02:10]} Bc3 {[%emt 0:01:11]} (44... Bb6 $15 45. Be4 Rd2+ 46. Kh3 Rfd6) 45. h5 {[%emt 0:00:56]} g5 {[%emt 0:14:56][%cal Ob4b3]} 46. Rc8 {[%emt 0:01:12]} (46. Rb1 $11 {remains equal.}) 46... a4 $17 {[%emt 0:00:32][%cal Ba5a4,Ba4a3,Ba3a2][%mdl 32]} 47. Rc7 {[%emt 0:00:10] This move loses the game for White.} (47. Rf1 $17) 47... a3 $19 {[%emt 0:00:43] And now ...a2 would win.} 48. Kf2 $2 {[%emt 0:00:49] [#]} (48. Ra7) 48... Rxd3 $1 {[%emt 0:01:38][%mdl 512] Black is clearly winning.} 49. cxd3 {[%emt 0:00:14]} a2 {[%emt 0:01:38] White must now prevent ...Bd4+.} 50. Rb7 {[%emt 0:00:47]} Ra6 {[%emt 0:00:13]} (50... Re6 $142 51. h6+ Rxh6) 51. h6+ {[%emt 0:00:29]} Rxh6 {[%emt 0:00:12]} 52. Rc1 {[%emt 0:00:28]} Ra6 {[%emt 0:00:08] Weighted Error Value: White=0.58/Black=0.28 (precise)} (52... Rh2+ $142 53. Kg1 Rb2) 0-1

[Event "Aktobe Open 2022"]
[Site "Aktobe"]
[Date "2022.06.15"]
[Round "2.2"]
[White "Afanasiev, Nikita"]
[Black "Balabayeva, Xeniya"]
[Result "1/2-1/2"]
[ECO "D36"]
[WhiteElo "2567"]
[BlackElo "2177"]
[Annotator "TA"]
[PlyCount "287"]
[EventDate "2022.06.14"]
[EventType "swiss"]
[EventCountry "KAZ"]
[SourceTitle "playchess.com"]
[Source "ChessBase"]
[SourceQuality "1"]
[TimeControl "5400+30"]

{[%evp 50,287,-15,-22,-11,-8,-4,-6,-10,-13,0,0,28,17,27,12,23,5,24,0,2,0,0,-20,-6,-14,-7,-5,20,7,80,64,56,54,52,49,66,83,61,63,115,123,125,111,132,59,160,167,144,153,145,0,0,10,22,0,0,0,0,0,0,0,0,0,0,0,8,8,8,8,8,8,38,30,91,23,87,82,89,16,15,13,36,36,35,40,45,0,0,0,8,0,0,0,0,0,0,0,8,0,0,0,8,8,8,0,0,0,0,0,0,0,0,0,0,0,0,0,0,0,0,0,0,0,0,0,0,0,0,0,0,0,0,0,7,7,7,7,7,0,8,0,0,0,0,0,8,7,8,2,2,0,0,0,7,0,0,0,0,0,0,0,0,0,0,0,0,0,0,0,0,0,0,0,0,0,0,0,8,8,8,7,7,7,21,8,8,8,9,0,8,0,8,8,8,8,8,8,8,8,13,0,0,0,8,8,8,0,0,0,0,0,0,0,0,0,0,0,0,0,0,0,0,0,0,0,0,0,0,0,0,0,0,0,0,0,0,0,0,0]} 1. c4 {[%emt 0:02:18]} e6 {[%emt 0:00:23]} 2. Nc3 {[%emt 0:01:23]} d5 {[%emt 0:00:45]} 3. d4 {[%emt 0:00:24]} Nf6 {[%emt 0:00:31]} 4. cxd5 {[%emt 0:00:05]} exd5 {[%emt 0:00:06]} 5. Bg5 {[%emt 0:00:04]} Be7 {[%emt 0:00:43]} 6. e3 {[%emt 0:00:09]} c6 {[%emt 0:00:19]} 7. Bd3 {[%emt 0:01:33]} Nbd7 {[%emt 0:02:44]} 8. h3 {[%emt 0:04:53]} Nb6 {[%emt 0:12:04]} 9. Qc2 {[%emt 0:03:20]} Nh5 {[%emt 0:01:24]} 10. Bxe7 {[%emt 0:01:34]} Qxe7 {[%emt 0:00:08]} 11. O-O-O {[%emt 0:00:09]} g6 {[%emt 0:05:44]} 12. Nf3 {[%emt 0:04:46]} Be6 {[%emt 0:03:28]} 13. Kb1 {[%emt 0:01:47]} O-O-O {[%emt 0:01:34]} 14. Nd2 {[%emt 0:01:13]} Ng7 {[%emt 0:07:32]} 15. Na4 {[%emt 0:08:28]} Nxa4 {[%emt 0:00:49]} 16. Qxa4 {[%emt 0:00:05]} Kb8 {[%emt 0:00:15]} 17. Ka1 {[%emt 0:00:20]} Bf5 {[%emt 0:04:49]} 18. Be2 {[%emt 0:00:40]} h5 {[%emt 0:04:49]} 19. Rc1 {[%emt 0:08:50]} Ne8 {[%emt 0:18:08]} 20. Rc3 {[%emt 0:00:54]} Nd6 {[%emt 0:08:08]} 21. Ra3 {[%emt 0:00:47]} Nc8 {[%emt 0:01:25]} 22. g3 {[%emt 0:03:02]} Rd7 {[%emt 0:03:01]} 23. Bf1 {[%emt 0:11:17]} Rc7 {[%emt 0:05:39]} 24. Bg2 {[%emt 0:00:32]} Qd7 {[%emt 0:03:15]} 25. Nf3 {[%emt 0:01:04]} f6 {[%emt 0:02:42]} 26. Nd2 {[%emt 0:03:11]} Re8 {[%emt 0:01:45]} 27. h4 {[%emt 0:01:32]} b6 {[%emt 0:02:38]} 28. Rc1 {[%emt 0:01:21]} Nd6 {[%emt 0:02:10]} 29. Bf1 {[%emt 0:00:38]} Rec8 {[%emt 0:04:44]} 30. Ba6 {[%emt 0:07:09]} Nb7 {[%emt 0:00:36]} 31. Rac3 {[%emt 0:00:35]} Qd6 {[%emt 0:00:30]} 32. Nf3 {[%emt 0:02:35]} Be4 {[%emt 0:00:39]} 33. Ng1 {[%emt 0:01:55]} c5 {[%emt 0:01:55]} 34. Ne2 {[%emt 0:01:37]} c4 {[%emt 0:01:13]} 35. Ra3 {[%emt 0:00:27]} Bf5 $1 {[%emt 0:00:41]} 36. Nf4 {[%emt 0:05:44]} g5 {[%emt 0:00:39]} 37. Ne2 $1 {[%emt 0:00:04]} (37. Nxh5 $2 Bg4 38. Nf4 (38. Bb5 $2 a5 $19) 38... gxf4 39. exf4 Bd7 $19) 37... Bd7 {[%emt 0:00:31]} 38. Bb5 {[%emt 0:00:04]} a5 {[%emt 0:00:27]} 39. Nc3 {[%emt 0:00:21]} Qe6 {[%emt 0:00:25]} (39... gxh4 $11 40. Bxd7 Rxd7) 40. Bxd7 {[%emt 0:09:59]} Qxd7 {[%emt 0:01:12]} 41. b4 {[%emt 0:00:15]} cxb3 {[%emt 0:00:00]} 42. Qxd7 {[%emt 0:00:06]} Rxd7 {[%emt 0:00:20]} 43. Rxb3 {[%emt 0:00:04]} Rdc7 {[%emt 0:00:34]} 44. Kb2 {[%emt 0:00:08]} gxh4 {[%emt 0:00:30]} (44... Rc6 $14) 45. gxh4 $16 {[%emt 0:00:49]} ({Don't play} 45. Rxb6 h3 46. a4 (46. Rxf6 $2 h2 $19) 46... h4 $14) 45... Rc6 {[%emt 0:00:13]} 46. Rg1 {[%emt 0:00:28]} Nd6 {[%emt 0:00:44] [#]} 47. Nxd5 {[%emt 0:00:37]} (47. a4 $1 $16) 47... Ka7 {[%emt 0:01:09]} (47... Rc2+ $14 48. Kb1 b5) 48. Rc3 $16 {[%emt 0:05:41]} Rxc3 {[%emt 0:00:00]} 49. Nxc3 {[%emt 0:01:06]} b5 {[%emt 0:00:27]} 50. Nd5 {[%emt 0:01:07]} ({White should try} 50. Rc1 $16 {[%cal Oc3b5] Hoping for Nxb5+!} Ka6 51. Nd5) 50... Nc4+ $11 {[%emt 0:00:30]} 51. Ka1 {[%emt 0:00:20]} Na3 $1 {[%emt 0:00:29]} 52. Rg7+ {[%emt 0:06:02]} ({Don't do} 52. Nxf6 $6 Rc2 $16) 52... Kb8 $1 {[%emt 0:00:23]} 53. Kb2 {[%emt 0:01:42]} ({But not} 53. Nxf6 Rc2 $16) 53... Nc4+ {[%emt 0:00:09]} 54. Ka1 {[%emt 0:00:08]} Na3 $1 {[%emt 0:00:05]} 55. Nxf6 {[%emt 0:00:26]} Rc2 $1 {[%emt 0:00:27]} 56. Ne4 {[%emt 0:01:14]} b4 {[%emt 0:00:26]} 57. Rg1 {[%emt 0:00:08]} a4 {[%emt 0:00:52]} 58. Nc5 $1 {[%emt 0:00:31]} Rxf2 {[%emt 0:00:13]} 59. Na6+ {[%emt 0:00:51]} Kb7 {[%emt 0:00:36]} 60. Nxb4 {[%emt 0:00:05]} Re2 {[%emt 0:00:13]} 61. Rg7+ {[%emt 0:00:34]} Kc8 {[%emt 0:00:38]} (61... Kb8 $11 {keeps the balance.}) 62. Nd5 {[%emt 0:01:08]} (62. Rg5 $16) 62... Nc2+ {[%emt 0:00:53]} (62... Kb8 $11) 63. Kb1 $16 {[%emt 0:00:04]} Nxe3 {[%emt 0:00:07]} 64. Nb6+ {[%emt 0:01:02]} (64. Nxe3 $16 Rxe3 65. Rh7) 64... Kb8 $11 {[%emt 0:00:32]} 65. Nxa4 {[%emt 0:00:47]} Rd2 {[%emt 0:00:33]} 66. Rg8+ {[%emt 0:00:33]} Kb7 {[%emt 0:00:43]} 67. Nc5+ {[%emt 0:00:12]} Kc6 {[%emt 0:00:58]} 68. Rg6+ {[%emt 0:00:04]} Kb5 {[%emt 0:00:42]} 69. Nb3 {[%emt 0:00:48]} Rg2 {[%emt 0:00:28]} 70. Rh6 {[%emt 0:01:04]} Nd5 {[%emt 0:00:26]} 71. Rxh5 {[%emt 0:00:21]} Kc4 {[%emt 0:00:06]} 72. Nc1 {[%emt 0:00:43]} Rh2 {[%emt 0:00:54]} 73. Rg5 {[%emt 0:00:31]} Rxh4 {[%emt 0:00:26]} 74. Rg2 {[%emt 0:00:28]} Rxd4 {[%emt 0:00:23]} 75. Nb3 {[%emt 0:00:14]} Rd3 {[%emt 0:00:46]} 76. Kb2 {[%emt 0:00:23]} Nb6 {[%emt 0:00:31]} 77. Rg5 {[%emt 0:00:31]} Rd5 {[%emt 0:00:11]} 78. Rg4+ {[%emt 0:00:07]} Kb5 $1 {[%emt 0:00:09]} 79. Nd4+ {[%emt 0:00:17]} Ka5 {[%emt 0:00:31]} 80. Kb3 {[%emt 0:00:12]} Rh5 {[%emt 0:00:19]} 81. Rg3 {[%emt 0:00:34]} Rd5 {[%emt 0:00:51]} 82. Nc6+ {[%emt 0:00:28]} Kb5 {[%emt 0:00:08]} 83. Nb4 {[%emt 0:00:31]} Rh5 {[%emt 0:00:11]} 84. Nc2 {[%emt 0:00:28]} Ka5 {[%emt 0:00:31]} 85. Nd4 {[%emt 0:00:28]} Rd5 {[%emt 0:00:34]} 86. Rg4 {[%emt 0:00:13]} Rh5 {[%emt 0:00:13]} 87. Rf4 {[%emt 0:00:17]} Rh3+ {[%emt 0:00:17]} 88. Nf3 {[%emt 0:00:05]} Rh5 {[%emt 0:00:09]} 89. Ka3 {[%emt 0:01:19]} Rc5 {[%emt 0:00:32]} 90. Nd2 {[%emt 0:00:11]} Kb5 {[%emt 0:00:33]} 91. Rb4+ {[%emt 0:00:09]} Ka6 {[%emt 0:00:09]} 92. Rh4 {[%emt 0:00:20]} Ra5+ {[%emt 0:00:26]} 93. Kb2 {[%emt 0:00:05]} Na4+ {[%emt 0:00:12]} 94. Kc2 {[%emt 0:01:00]} Nc5 {[%emt 0:00:24]} 95. Kb1 {[%emt 0:00:09]} Rb5+ {[%emt 0:00:12]} 96. Ka1 {[%emt 0:00:05]} Rb6 {[%emt 0:00:42]} 97. Nb1 {[%emt 0:00:52]} Nb7 {[%emt 0:01:27]} 98. Nc3 {[%emt 0:00:17]} Na5 {[%emt 0:00:22]} 99. Nd5 {[%emt 0:00:34]} Rd6 {[%emt 0:00:27]} 100. Nb4+ {[%emt 0:00:10]} Kb5 {[%emt 0:00:10]} 101. Kb2 {[%emt 0:00:06]} Rg6 {[%emt 0:00:23]} 102. Nc2 {[%emt 0:00:50]} Nc4+ {[%emt 0:00:15]} 103. Kc3 {[%emt 0:00:03]} Rg3+ {[%emt 0:00:09]} 104. Kd4 {[%emt 0:00:05]} Nb2 {[%emt 0:01:45]} 105. Ne3 {[%emt 0:00:31]} Rg5 {[%emt 0:00:32]} 106. Rh8 {[%emt 0:00:47]} Na4 {[%emt 0:00:51]} 107. Rb8+ {[%emt 0:00:34]} Kc6 {[%emt 0:00:49]} 108. Rc8+ {[%emt 0:00:52]} Kb7 {[%emt 0:00:08]} 109. Rc2 {[%emt 0:01:51]} Nb6 {[%emt 0:00:09]} 110. Ke4 {[%emt 0:00:28]} Rh5 {[%emt 0:00:15]} 111. Nf5 {[%emt 0:00:07]} Nc8 {[%emt 0:00:41]} 112. Rc3 {[%emt 0:02:05]} Rh1 {[%emt 0:00:28]} 113. Kd4 {[%emt 0:00:40]} Rb1 {[%emt 0:00:53]} 114. Kc5 {[%emt 0:00:09]} Rb6 {[%emt 0:00:42]} 115. Nd4 {[%emt 0:00:12]} Rh6 {[%emt 0:00:34]} 116. Rb3+ {[%emt 0:00:12]} Rb6 {[%emt 0:00:10]} 117. Rh3 {[%emt 0:00:27]} Na7 {[%emt 0:00:40]} 118. Rh7+ {[%emt 0:01:36]} Ka6 {[%emt 0:00:09]} 119. Rh5 {[%emt 0:00:43]} Rg6 {[%emt 0:00:58]} 120. a4 {[%emt 0:00:24]} Rg8 {[%emt 0:00:56]} 121. Kb4 {[%emt 0:00:19]} Rg4 {[%emt 0:00:28]} 122. Rh6+ {[%emt 0:00:26]} Kb7 {[%emt 0:00:14]} 123. Kc5 {[%emt 0:00:05]} Rg5+ {[%emt 0:00:15]} 124. Kc4 {[%emt 0:00:05]} Rg4 {[%emt 0:00:04]} 125. Kc3 {[%emt 0:00:50]} Rg3+ {[%emt 0:00:10]} 126. Kb2 {[%emt 0:00:07]} Rg2+ {[%emt 0:00:08]} 127. Ka3 {[%emt 0:01:39]} Rg3+ {[%emt 0:00:10]} 128. Nb3 {[%emt 0:00:04]} Nc6 {[%emt 0:00:04]} 129. Kb2 {[%emt 0:00:41]} Rg2+ {[%emt 0:00:05]} 130. Kc1 {[%emt 0:00:33]} Rg1+ {[%emt 0:00:09]} 131. Kc2 {[%emt 0:00:29]} Rg2+ {[%emt 0:00:07]} 132. Kd1 {[%emt 0:00:26]} Rg5 {[%emt 0:01:05]} 133. Nd2 {[%emt 0:00:42]} Rg4 {[%emt 0:00:18]} 134. Nb3 {[%emt 0:00:21]} Kb6 {[%emt 0:01:53]} 135. a5+ {[%emt 0:00:07]} Kb5 {[%emt 0:00:23]} 136. Kd2 {[%emt 0:00:21]} Rg2+ {[%emt 0:00:52]} 137. Kc3 {[%emt 0:01:03]} Rg3+ {[%emt 0:00:20]} 138. Kb2 {[%emt 0:00:06]} Rg4 {[%emt 0:00:53]} 139. Rh7 {[%emt 0:00:48]} Nb4 {[%emt 0:01:03]} 140. Rh5+ {[%emt 0:00:35]} Ka4 {[%emt 0:00:49]} 141. Rh3 {[%emt 0:00:44]} Rc4 {[%emt 0:00:30]} 142. Rg3 {[%emt 0:00:39]} Rc2+ {[%emt 0:00:33]} 143. Kb1 {[%emt 0:00:03]} Rh2 {[%emt 0:00:04]} 144. Kc1 {[%emt 0:00:18]} 1/2-1/2

[Event "Aktobe Open 2022"]
[Site "Aktobe"]
[Date "2022.06.15"]
[Round "2.3"]
[White "Kurmangaliyeva, Liya"]
[Black "Nesterov, Arseniy"]
[Result "1/2-1/2"]
[ECO "B15"]
[WhiteElo "2207"]
[BlackElo "2569"]
[Annotator "TA"]
[PlyCount "94"]
[EventDate "2022.06.14"]
[EventType "swiss"]
[EventCountry "KAZ"]
[SourceTitle "playchess.com"]
[Source "ChessBase"]
[SourceQuality "1"]
[TimeControl "5400+30"]

{[%evp 14,94,0,6,3,0,8,0,0,12,21,21,15,8,15,15,22,19,37,34,34,31,31,11,7,13,13,13,13,12,21,20,13,0,0,0,0,-4,0,0,0,0,7,0,0,0,0,-10,0,-4,5,2,4,0,0,0,0,0,8,0,0,0,0,0,0,0,0,-2,-2,-2,0,0,0,-2,-2,-2,-2,-2,-2,-2,-2,-2,0]} 1. e4 {[%emt 0:00:12]} c6 {[%emt 0:00:08]} 2. d4 {[%emt 0:01:03]} d5 {[%emt 0:00:08]} 3. Nc3 {[%emt 0:00:39]} dxe4 {[%emt 0:00:10]} 4. Nxe4 {[%emt 0:00:06]} Nf6 {[%emt 0:00:31]} 5. Nxf6+ {[%emt 0:01:30]} exf6 {[%emt 0:00:08]} 6. Nf3 {[%emt 0:06:07]} Bd6 {[%emt 0:05:33]} 7. Bc4 {[%emt 0:00:21]} O-O {[%emt 0:00:48]} 8. O-O {[%emt 0:02:45]} Bg4 {[%emt 0:01:06] B15: Caro-Kann: 3 Nc3: 3...g6 and 3...dxe4 4 Nxe4 Nf6 5 Nxf6+ exf6.} 9. h3 {[%emt 0:03:25]} Bh5 {[%emt 0:01:13]} 10. g4 {[%emt 0:04:58]} Bg6 {[%emt 0:00:06]} 11. Nh4 {[%emt 0:00:12]} Bc7 {[%emt 0:02:58]} 12. Nxg6 {[%emt 0:07:24]} hxg6 {[%emt 0:00:12] [#]} 13. Kg2 $146 {[%emt 0:01:36]} ({Predecessor:} 13. Qd3 b5 14. Bb3 Qd6 15. f4 a5 16. a3 a4 17. Ba2 Bb6 18. Be3 Ra7 19. Rad1 {1-0 (98) Aldokhin,I (2413)-Sreyas,P (2244) Chess.com INT 2021}) 13... Qd6 {[%emt 0:05:23] [#] Threatens to win with ...b5.} 14. Rh1 $1 {[%emt 0:03:10]} Nd7 {[%emt 0:05:36]} 15. c3 {[%emt 0:07:35][%cal Bc2c3,Bc3c4][%mdl 32]} Nb6 {[%emt 0:00:50]} 16. Bb3 {[%emt 0:08:03]} Nd5 {[%emt 0:01:04]} 17. Qf3 {[%emt 0:01:36]} Rfe8 {[%emt 0:01:16]} 18. c4 {[%emt 0:06:59]} (18. Bd2 {is interesting.} a5 19. h4 f5 20. gxf5 gxf5 21. Qxf5 Re2 22. Rad1) 18... Nf4+ {[%emt 0:12:33] The position is equal.} 19. Bxf4 {[%emt 0:01:07]} Qxf4 {[%emt 0:00:03]} 20. Qxf4 {[%emt 0:00:35]} (20. Rad1 {with more complications.} Re7 21. Qxf4 Bxf4 22. Kf3) 20... Bxf4 {[%emt 0:00:02]} 21. Rad1 {[%emt 0:03:54]} Rad8 {[%emt 0:00:37]} 22. Kf3 {[%emt 0:01:27]} Bc7 {[%emt 0:01:49]} 23. Rd3 {[%emt 0:07:28]} f5 {[%emt 0:00:49]} 24. Re3 {[%emt 0:03:25]} Kf8 {[%emt 0:01:00]} 25. Rd1 {[%emt 0:02:41]} Re7 {[%emt 0:00:51]} 26. Rxe7 {[%emt 0:08:16]} Kxe7 $11 {[%emt 0:00:04][%mdl 4096] Endgame KRB-KRB} 27. c5 {[%emt 0:00:35]} Rh8 {[%emt 0:07:39]} 28. gxf5 {[%emt 0:01:54]} gxf5 {[%emt 0:02:54]} 29. Kg2 {[%emt 0:00:13]} Rd8 {[%emt 0:05:55]} 30. Kf3 {[%emt 0:03:50]} Kf6 {[%emt 0:02:54]} 31. Bc4 {[%emt 0:01:34]} b6 {[%emt 0:08:13]} 32. b4 {[%emt 0:01:35]} a5 {[%emt 0:00:58]} 33. a3 {[%emt 0:05:12][%cal Ba2a3,Ba3b4][%mdl 32]} axb4 {[%emt 0:00:17]} 34. axb4 {[%emt 0:00:16]} bxc5 {[%emt 0:00:08]} 35. bxc5 {[%emt 0:00:12]} Ra8 {[%emt 0:00:03]} 36. Rd3 {[%emt 0:01:37]} g5 {[%emt 0:04:11]} 37. d5 {[%emt 0:02:16]} Ra5 {[%emt 0:03:56]} 38. dxc6 {[%emt 0:00:22][%cal Od3d6]} ({Much weaker is} 38. d6 Bd8 $17) 38... Rxc5 {[%emt 0:00:08]} 39. Bxf7 {[%emt 0:01:00]} Rxc6 {[%emt 0:00:35]} 40. Bb3 {[%emt 0:00:04]} Rb6 {[%emt 0:00:29]} 41. Kg2 {[%emt 0:00:49]} Rb4 {[%emt 0:00:31]} 42. Rc3 {[%emt 0:00:35]} Bb6 {[%emt 0:00:30]} 43. Bd1 {[%emt 0:00:32]} Bd4 {[%emt 0:00:59]} 44. Rc2 {[%emt 0:00:33]} Ke5 {[%emt 0:00:10]} 45. Bf3 {[%emt 0:00:38]} Rb3 {[%emt 0:00:53]} 46. Rd2 {[%emt 0:00:28]} Ra3 {[%emt 0:00:20]} 47. Bc6 {[%emt 0:00:34]} Rb3 {[%emt 0:00:27] Weighted Error Value: White=0.02 (flawless) /Black=0.02 (flawless)} 1/2-1/2

[Event "Aktobe Open 2022"]
[Site "Aktobe"]
[Date "2022.06.15"]
[Round "2.4"]
[White "Vakhidov, Jakhongir"]
[Black "Mazhkenov, Alisher"]
[Result "1-0"]
[ECO "D14"]
[WhiteElo "2552"]
[BlackElo "2045"]
[Annotator "TA"]
[PlyCount "83"]
[EventDate "2022.06.14"]
[EventType "swiss"]
[EventCountry "KAZ"]
[SourceTitle "playchess.com"]
[Source "ChessBase"]
[SourceQuality "1"]
[TimeControl "5400+30"]

{[%evp 15,83,14,14,22,37,15,37,26,31,40,39,39,60,50,63,41,63,70,72,70,91,81,62,69,171,167,179,192,182,182,265,262,279,282,282,282,292,292,292,284,284,284,281,283,283,281,345,317,383,381,373,227,360,223,256,256,288,278,370,339,434,434,433,427,385,416,423,361,482,441]} 1. c4 {[%emt 0:00:21]} c6 {[%emt 0:00:03]} 2. d4 {[%emt 0:01:17]} d5 {[%emt 0:00:05]} 3. cxd5 {[%emt 0:00:24]} cxd5 {[%emt 0:00:04]} 4. Bf4 {[%emt 0:00:06]} Nc6 {[%emt 0:03:28]} 5. e3 {[%emt 0:00:12]} Nf6 {[%emt 0:01:32]} 6. Nc3 {[%emt 0:00:44]} Bf5 {[%emt 0:04:37]} 7. Nf3 {[%emt 0:00:27]} e6 {[%emt 0:01:17]} 8. Be2 {[%emt 0:00:10]} Bd6 {[%emt 0:02:46]} 9. Ne5 $1 {[%emt 0:00:09][%mdl 4] is now more promising than 9.Bxd6. D14: Slav Defence: Exchange variation with ...Bf5.} Bxe5 {[%emt 0:08:36]} (9... Qb6 {with more complications.} 10. Bb5 Ne4 11. Bxc6+ bxc6 12. Nxe4 Bxe4 13. O-O Bxe5 14. Bxe5 f6) 10. Bxe5 {[%emt 0:00:08]} O-O {[%emt 0:04:31] [#]} 11. Bf4 $146 {[%emt 0:06:56] White is slightly better.} ({Predecessor:} 11. h4 h6 12. g4 Bg6 13. Bxf6 Qxf6 14. f4 Qe7 15. g5 Rfc8 16. Bd3 Qb4 17. Rh2 {1-0 (44) Abdusattorov,N (2633)-Mohammad,N (2429) Sitges 2021}) 11... Qb6 {[%emt 0:07:38]} 12. Qd2 {[%emt 0:19:50]} Ne4 {[%emt 0:16:42]} 13. Nxe4 {[%emt 0:00:15]} Bxe4 {[%emt 0:01:27]} 14. O-O {[%emt 0:07:08]} Rfc8 {[%emt 0:03:50]} 15. Rac1 {[%emt 0:13:41]} Nb4 {[%emt 0:02:13]} 16. f3 {[%emt 0:07:35]} Bg6 {[%emt 0:02:16]} 17. a3 {[%emt 0:15:18]} Nc2 {[%emt 0:10:23]} 18. Bd1 {[%emt 0:00:17][%cal Be2d1,Bd1c2,Bc2b3,Bb3d5][%mdl 32]} Qxb2 {[%emt 0:07:14]} 19. Rf2 {[%emt 0:00:02]} Rc4 {[%emt 0:03:35] White leaves nothing to chance now.} 20. e4 $1 $18 {[%emt 0:01:19][%cal Rc1c2]} ({Worse is} 20. Rxc2 Bxc2 21. Bxc2 Qxa3 $15) 20... Rac8 {[%emt 0:07:41][%cal Od5e4]} 21. Rxc2 {[%emt 0:00:20]} Rxc2 {[%emt 0:00:28]} 22. Bxc2 {[%emt 0:00:03]} Qa1+ {[%emt 0:01:11]} (22... Qxa3 {was necessary.} 23. Rf1 b5) 23. Qd1 {[%emt 0:01:57]} ({Resist} 23. Rf1 Qxa3 24. Rb1 dxe4 $18) 23... Qxa3 {[%emt 0:00:28]} 24. exd5 {[%emt 0:01:31]} exd5 {[%emt 0:01:27]} 25. Bb3 {[%emt 0:02:18]} Qb4 {[%emt 0:01:21]} 26. Bxd5 {[%emt 0:05:17]} Rd8 {[%emt 0:01:18]} 27. Ba2 {[%emt 0:02:03]} ({Don't play} 27. Re2 $6 h6 $18) 27... Rxd4 {[%emt 0:02:29] [#]} 28. Rd2 {[%emt 0:00:04]} Rxd2 {[%emt 0:00:54]} 29. Qxd2 {[%emt 0:00:08]} Qxd2 {[%emt 0:01:46]} 30. Bxd2 {[%emt 0:00:02]} Kf8 {[%emt 0:00:11]} 31. Bb4+ {[%emt 0:00:05]} Ke8 {[%emt 0:00:08]} 32. Bd5 {[%emt 0:00:05]} b6 {[%emt 0:00:26]} 33. Bc6+ {[%emt 0:00:53]} Kd8 {[%emt 0:00:04]} 34. Bd6 {[%emt 0:00:08] Black must now prevent Bf8.} Bd3 {[%emt 0:01:18]} 35. Kf2 {[%emt 0:00:10]} a5 {[%emt 0:00:12]} 36. Ke3 {[%emt 0:00:19]} Bf1 {[%emt 0:00:19]} 37. g4 {[%emt 0:00:32]} b5 {[%emt 0:00:39]} 38. Kd4 {[%emt 0:06:31]} b4 {[%emt 0:01:45]} 39. Kc5 {[%emt 0:01:21]} b3 {[%emt 0:01:58]} 40. Kd4 {[%emt 0:04:28]} b2 {[%emt 0:01:21]} 41. Be4 {[%emt 0:00:03]} Kd7 {[%emt 0:00:46]} 42. Ba3 {[%emt 0:00:11] Weighted Error Value: White=0.07 (flawless) /Black=0.26 (precise)} 1-0